bitfinex/quotes_ETHUSD_20250520
["timestamp","ask_amount","ask_price","bid_price","bid_amount"]
[1747734196086,4.47625295,2533.6,2533.5,38.395]
[1747734197583,4.47625295,2533.6,2533.5,38.385]
[1747734198388,3.68735295,2533.6,2533.5,38.385]
[1747734203799,3.68735295,2533.6,2533.5,25.033]
[1747734203987,3.68735295,2533.6,2533.5,38.76254347]
[1747734205788,3.68735295,2533.6,2533.5,25.41054347]
[1747734206092,3.68735295,2533.6,2533.5,38.76254347]
[1747734208399,3.68735295,2533.6,2533.5,30.76254347]
[1747734212806,3.68735295,2533.6,2533.5,25.41054347]
[1747734212971,3.68735295,2533.6,2533.5,38.76254347]
[1747734213693,3.68735295,2533.6,2533.5,39.58734347]
[1747734215774,3.68735295,2533.6,2533.5,25.41054347]
[1747734216011,3.68735295,2533.6,2533.5,38.76254347]
[1747734219132,0.8218,2534.2,2533.6,8.8278]
[1747734219275,3.94679717,2533.7,2533.6,8.8278]
[1747734221320,3.94679717,2533.7,2533.6,22.1798]
[1747734221514,3.94679717,2533.7,2533.6,23.0266147]
[1747734223293,3.94679717,2533.7,2533.6,22.1988147]
[1747734223625,3.94679717,2533.7,2533.6,21.72954347]
[1747734225025,3.9467065,2533.8,2533.6,21.72954347]
[1747734225230,3.9467065,2533.8,2533.7,8.0]
[1747734226434,3.94603006,2534.2,2533.9,8.0]
[1747734226593,3.94611859,2534.2,2533.8,0.7691]
[1747734226797,3.94642925,2534.0,2533.8,0.7691]
[1747734226991,3.94611329,2534.2,2533.9,5.3239]
[1747734227197,3.94618825,2534.1,2533.8,0.7691]
[1747734227525,3.94618825,2534.1,2533.9,0.91466435]
[1747734228113,3.94618825,2534.1,2534.0,0.37754347]
[1747734230936,3.94618825,2534.1,2534.0,21.67254347]
[1747734231096,3.94618825,2534.1,2534.0,22.07136207]
[1747734232724,3.94618825,2534.1,2534.0,22.07036207]
[1747734238207,3.94618825,2534.1,2534.0,8.77636207]
[1747734238708,3.94618825,2534.1,2534.0,22.07036207]
[1747734239510,3.94618825,2534.1,2534.0,8.77636207]
[1747734239924,3.94618825,2534.1,2534.0,22.07036207]
[1747734241555,3.94618825,2534.1,2534.0,8.77636207]
[1747734241718,3.94618825,2534.1,2534.0,22.07036207]
[1747734242106,3.94618825,2534.1,2534.0,8.77636207]
[1747734242419,3.94618825,2534.1,2534.0,22.07036207]
[1747734242830,4.6962142,2534.1,2534.0,0.37754347]
[1747734243037,5.5065142,2534.1,2534.0,0.37754347]
[1747734243223,5.5065142,2534.1,2534.0,7.75754347]
[1747734243425,5.5065142,2534.1,2534.0,8.0242728]
[1747734243949,5.5065142,2534.1,2534.0,7.64672933]
[1747734248651,5.5065142,2534.1,2534.0,0.26672933]
[1747734248850,5.5065142,2534.1,2534.0,7.64672933]
[1747734250153,5.5065142,2534.1,2534.0,7.64772933]
[1747734251253,5.5065142,2534.1,2534.0,0.26672933]
[1747734251435,5.5065142,2534.1,2534.0,7.64772933]
[1747734252175,5.5065142,2534.1,2534.0,0.26672933]
[1747734252469,6.0565142,2534.1,2534.0,0.26672933]
[1747734252827,16.1765142,2534.1,2534.0,0.26672933]
[1747734253266,20.3275142,2534.1,2534.0,0.26672933]
[1747734253771,20.3275142,2534.1,2533.5,17.033]
[1747734253772,4.75955295,2533.6,2533.5,17.033]
[1747734253929,6.29867734,2533.6,2533.5,24.414]
[1747734254443,4.75955295,2533.6,2533.5,24.414]
[1747734255750,6.29867734,2533.6,2533.5,24.415]
[1747734256057,7.16931561,2533.6,2533.5,24.415]
[1747734256678,7.16931561,2533.6,2533.5,17.033]
[1747734259330,5.63019122,2533.6,2533.5,17.033]
[1747734262337,4.75955295,2533.6,2533.5,17.033]
[1747734262535,6.29867734,2533.6,2533.5,17.033]
[1747734264137,6.29867734,2533.6,2533.5,24.393]
[1747734264968,6.29867734,2533.6,2533.5,24.394]
[1747734268435,4.49757618,2533.2,2533.1,7.411]
[1747734268641,6.84680057,2533.2,2533.1,7.411]
[1747734268960,14.84680057,2533.2,2533.1,7.411]
[1747734269473,14.84680057,2533.2,2533.1,0.05]
[1747734269474,29.11780057,2533.2,2533.1,0.05]
[1747734269772,17.46433202,2533.1,2533.0,159.71725504]
[1747734269980,21.32009326,2533.1,2533.0,159.71725504]
[1747734271183,27.28909326,2533.1,2533.0,159.71725504]
[1747734271380,19.28909326,2533.1,2533.0,159.71725504]
[1747734271539,18.73909326,2533.1,2533.0,159.71725504]
[1747734271977,19.28909326,2533.1,2533.0,159.71725504]
[1747734280998,14.06773202,2533.1,2533.0,159.71725504]
[1747734281715,14.06773202,2533.1,2533.0,167.08025504]
[1747734293848,3.94773202,2533.1,2533.0,167.08025504]
[1747734295415,3.94773202,2533.1,2533.0,167.08225504]
[1747734298238,3.94773202,2533.1,2533.0,159.71725504]
[1747734298454,3.94773202,2533.1,2533.0,173.00025504]
[1747734299753,3.94773202,2533.1,2533.0,159.71725504]
[1747734299956,3.94773202,2533.1,2533.0,167.08225504]
[1747734300459,5.36322082,2533.1,2533.0,167.08225504]
[1747734301855,17.57234521,2533.1,2533.0,159.71725504]
[1747734302062,26.92592082,2533.1,2533.0,159.71725504]
[1747734302919,36.46504521,2533.1,2533.0,159.71725504]
[1747734303279,34.92592082,2533.1,2533.0,159.71725504]
[1747734304515,30.54704521,2533.1,2533.0,159.71725504]
[1747734304748,36.46604521,2533.1,2533.0,159.71725504]
[1747734308169,34.92692082,2533.1,2533.0,159.71725504]
[1747734308365,29.00792082,2533.1,2533.0,159.71725504]
[1747734308553,16.30692082,2533.1,2533.0,159.71725504]
[1747734308759,17.84604521,2533.1,2533.0,159.71725504]
[1747734309065,14.06773202,2533.1,2533.0,159.71725504]
[1747734309733,15.60685641,2533.1,2533.0,159.71725504]
[1747734310233,14.06773202,2533.1,2533.0,159.71725504]
[1747734317744,15.44093202,2533.1,2533.0,159.71725504]
[1747734319873,14.06773202,2533.1,2533.0,159.71725504]
[1747734322579,3.94773202,2533.1,2533.0,159.71725504]
[1747734323578,6.82504521,2533.1,2533.0,159.71725504]
[1747734323750,7.37504521,2533.1,2533.0,159.71725504]
[1747734323945,25.49504521,2533.1,2533.0,159.71725504]
[1747734327749,26.29344521,2533.1,2533.0,159.71725504]
[1747734330254,30.44444521,2533.1,2533.0,159.71725504]
[1747734330858,36.36344521,2533.1,2533.0,159.71725504]
[1747734332884,37.9025696,2533.1,2533.0,159.71725504]
[1747734333082,36.36344521,2533.1,2533.0,159.71725504]
[1747734335797,30.86404521,2533.1,2533.0,159.71725504]
[1747734338366,24.94504521,2533.1,2533.0,159.71725504]
[1747734338566,30.86404521,2533.1,2533.0,159.71725504]
[1747734339879,24.94504521,2533.1,2533.0,159.71725504]
[1747734340086,30.86404521,2533.1,2533.0,159.71725504]
[1747734340597,22.86404521,2533.1,2533.0,159.71725504]
[1747734344403,30.86404521,2533.1,2533.0,159.71725504]
[1747734344998,31.41404521,2533.1,2533.0,159.71725504]
[1747734345296,35.56504521,2533.1,2533.0,159.71725504]
[1747734345488,38.19332053,2533.1,2533.0,159.71725504]
[1747734348404,44.23813173,2533.1,2533.0,133.10874913]
[1747734348608,46.60613173,2533.1,2533.0,113.32230048]
[1747734348901,100.98581167,2533.1,2533.0,93.61570311]
[1747734349065,100.98581167,2533.1,2533.0,91.6425693]
[1747734349066,87.68728316,2533.1,2533.0,91.6425693]
[1747734349272,85.31376422,2533.1,2533.0,91.6425693]
[1747734349474,90.96152482,2533.1,2533.0,89.66943549]
[1747734349703,90.96152482,2533.1,2533.0,87.69630168]
[1747734350005,90.96152482,2533.1,2533.0,85.72316787]
[1747734350395,74.86332782,2533.1,2533.0,83.75003406]
[1747734350590,74.86332782,2533.1,2533.0,81.77604337]
[1747734350790,61.56132782,2533.1,2533.0,81.77604337]
[1747734351105,58.28889233,2533.1,2533.0,81.77604337]
[1747734351488,58.83889233,2533.1,2533.0,81.77604337]
[1747734352102,66.83889233,2533.1,2533.0,81.77604337]
[1747734352488,51.44476794,2533.1,2533.0,81.77604337]
[1747734352673,49.36476794,2533.1,2533.0,81.77604337]
[1747734352874,59.45389233,2533.1,2533.0,81.77604337]
[1747734355687,57.91476794,2533.1,2533.0,81.77604337]
[1747734357602,51.99476794,2533.1,2533.0,81.77604337]
[1747734357775,57.91476794,2533.1,2533.0,81.77604337]
[1747734359382,40.86476794,2533.1,2533.0,81.77604337]
[1747734359780,34.94476794,2533.1,2533.0,81.77604337]
[1747734359979,30.01036794,2533.1,2533.0,81.77604337]
[1747734360186,21.25461701,2533.1,2533.0,81.77604337]
[1747734360523,21.52685641,2533.1,2533.0,82.55714337]
[1747734360685,22.07685641,2533.1,2533.0,82.55714337]
[1747734361023,22.07685641,2533.1,2533.0,81.77604337]
[1747734364421,15.60685641,2533.1,2533.0,81.77604337]
[1747734364583,21.52685641,2533.1,2533.0,81.77604337]
[1747734366323,22.07685641,2533.1,2533.0,81.77604337]
[1747734366521,30.07685641,2533.1,2533.0,81.77604337]
[1747734369621,29.52685641,2533.1,2533.0,81.77604337]
[1747734369827,23.60685641,2533.1,2533.0,81.77604337]
[1747734370027,29.52685641,2533.1,2533.0,81.77604337]
[1747734370827,27.98773202,2533.1,2533.0,81.77604337]
[1747734371528,19.98773202,2533.1,2533.0,81.77604337]
[1747734376231,14.06773202,2533.1,2533.0,81.77604337]
[1747734376633,3.94773202,2533.1,2533.0,81.77604337]
[1747734376864,3.94773202,2533.1,2533.0,82.60364337]
[1747734377638,3.94773202,2533.1,2533.0,81.77604337]
[1747734377804,9.86673202,2533.1,2533.0,81.77604337]
[1747734379243,3.94773202,2533.1,2533.0,82.57194337]
[1747734383141,3.94773202,2533.1,2533.0,89.95894337]
[1747734387614,3.94773202,2533.1,2533.0,90.86670594]
[1747734388432,3.82791017,2533.1,2533.0,98.86670594]
[1747734388624,3.94765992,2533.2,2533.1,0.7978]
[1747734388829,3.94765992,2533.2,2533.1,6.7168]
[1747734390645,3.94765992,2533.2,2533.1,14.1038]
[1747734390848,3.94765992,2533.2,2533.1,0.7978]
[1747734391047,3.94765992,2533.2,2533.1,14.1028]
[1747734392051,3.94765992,2533.2,2533.1,18.00516288]
[1747734393935,3.94765992,2533.2,2533.1,14.1018]
[1747734399290,3.94773202,2533.1,2533.0,81.77604337]
[1747734399583,3.94773202,2533.1,2533.0,89.16204337]
[1747734400686,3.94773202,2533.1,2533.0,89.93824337]
[1747734401494,3.94773202,2533.1,2533.0,82.55224337]
[1747734401697,3.94773202,2533.1,2533.0,89.16204337]
[1747734407653,3.94773202,2533.1,2533.0,81.77604337]
[1747734407849,3.94773202,2533.1,2533.0,89.16204337]
[1747734408488,3.94773202,2533.1,2533.0,81.77604337]
[1747734408658,3.94773202,2533.1,2533.0,89.16204337]
[1747734408983,3.94773202,2533.1,2533.0,81.77604337]
[1747734409283,3.94773202,2533.1,2533.0,89.16204337]
[1747734410585,3.94773202,2533.1,2533.0,81.77604337]
[1747734410787,3.94773202,2533.1,2533.0,89.14604337]
[1747734411786,4.49773202,2533.1,2533.0,81.77604337]
[1747734411990,5.25813202,2533.1,2533.0,81.77604337]
[1747734412355,13.25813202,2533.1,2533.0,81.77604337]
[1747734412579,23.37813202,2533.1,2533.0,81.77604337]
[1747734417886,29.29713202,2533.1,2533.0,81.77604337]
[1747734425299,22.61773202,2533.1,2533.0,81.77604337]
[1747734425490,28.53673202,2533.1,2533.0,81.77604337]
[1747734425979,29.36153202,2533.1,2533.0,81.77604337]
[1747734429674,33.51653202,2533.1,2533.0,81.77604337]
[1747734432210,23.39653202,2533.1,2533.0,81.77604337]
[1747734437939,19.24153202,2533.1,2533.0,81.77604337]
[1747734439831,23.39653202,2533.1,2533.0,81.77604337]
[1747734440032,19.24153202,2533.1,2533.0,81.77604337]
[1747734449624,24.93565641,2533.1,2533.0,81.30727412]
[1747734449923,24.93565641,2533.1,2533.0,80.11687412]
[1747734450091,27.51144386,2533.1,2533.0,79.27177412]
[1747734450289,27.51144386,2533.1,2533.0,62.98064382]
[1747734450490,63.30087686,2533.1,2533.0,58.55695842]
[1747734450719,51.11976986,2533.1,2533.0,52.36282571]
[1747734451021,37.95339686,2533.1,2533.0,52.36282571]
[1747734451205,31.51165186,2533.1,2533.0,52.22062571]
[1747734452423,29.14165186,2533.1,2533.0,51.97262571]
[1747734452606,28.12055186,2533.1,2533.0,51.97262571]
[1747734453111,28.12055186,2533.1,2533.0,37.84694641]
[1747734453412,28.12055186,2533.1,2533.0,37.01694641]
[1747734453817,30.49055186,2533.1,2533.0,36.65394641]
[1747734454004,30.49055186,2533.1,2533.0,34.68000248]
[1747734454522,30.49055186,2533.1,2533.0,33.48360249]
[1747734455229,30.49055186,2533.1,2533.0,33.02390249]
[1747734455532,30.49055186,2533.1,2533.0,31.04995856]
[1747734455696,30.49055186,2533.1,2533.0,29.07601463]
[1747734455897,30.49055186,2533.1,2533.0,28.71301463]
[1747734456109,30.49055186,2533.1,2533.0,17.23733533]
[1747734456400,30.49055186,2533.1,2533.0,15.2633914]
[1747734456595,30.49055186,2533.1,2533.0,7.96226955]
[1747734456792,30.49055186,2533.1,2533.0,4.53781379]
[1747734457018,30.49055186,2533.1,2532.1,0.05]
[1747734457019,8.65413513,2532.2,2532.1,0.05]
[1747734457193,24.94695952,2532.2,2532.1,0.05]
[1747734458937,19.95925952,2532.2,2532.1,0.05]
[1747734459101,18.42013513,2532.2,2532.1,0.05]
[1747734462230,18.8174916,2532.2,2532.1,0.05]
[1747734463097,22.9724916,2532.2,2532.1,0.05]
[1747734463306,23.7247916,2532.2,2532.1,0.05]
[1747734479081,17.0514916,2532.2,2532.1,0.05]
[1747734479286,24.3944916,2532.2,2532.1,0.05]
[1747734482894,25.1490916,2532.2,2532.1,0.05]
[1747734487300,20.2394916,2532.2,2532.1,0.05]
[1747734487708,19.6894916,2532.2,2532.1,0.05]
[1747734488207,20.2394916,2532.2,2532.1,0.05]
[1747734488411,24.3944916,2532.2,2532.1,0.05]
[1747734495712,24.3954916,2532.2,2532.1,0.05]
[1747734497222,17.0514916,2532.2,2532.1,0.05]
[1747734497527,24.3954916,2532.2,2532.1,0.05]
[1747734497824,20.2404916,2532.2,2532.1,0.05]
[1747734506520,20.2384916,2532.2,2532.1,0.05]
[1747734507354,12.3464916,2532.2,2532.1,0.05]
[1747734507801,12.8964916,2532.2,2532.1,0.05]
[1747734511764,12.3464916,2532.2,2532.1,0.05]
[1747734516182,14.13141547,2532.2,2532.1,0.05]
[1747734516840,12.8964916,2532.2,2532.1,0.05]
[1747734517046,12.3464916,2532.2,2532.1,0.8648]
[1747734526374,3.94913513,2532.2,2532.1,0.8648]
[1747734526776,3.94913513,2532.2,2532.1,1.68538]
[1747734528146,3.94913513,2532.2,2532.1,0.8648]
[1747734528879,3.94913513,2532.2,2532.1,8.2058]
[1747734529080,3.94913513,2532.2,2532.1,0.8648]
[1747734555019,3.94913513,2532.2,2532.1,8.2018]
[1747734555340,3.94913513,2532.2,2532.1,7.387]
[1747734580964,5.25743513,2532.2,2532.1,0.05]
[1747734581731,13.25743513,2532.2,2532.1,0.05]
[1747734590753,18.0829646,2532.2,2532.1,0.05]
[1747734590957,19.98828633,2532.2,2532.1,0.05]
[1747734591875,43.08146933,2532.2,2532.1,0.05]
[1747734592081,35.63377433,2532.2,2532.1,0.05]
[1747734592692,32.49970433,2532.2,2532.1,0.05]
[1747734592982,31.86811936,2532.2,2532.1,0.05]
[1747734593583,24.18470136,2532.2,2532.1,0.05]
[1747734593748,21.24266136,2532.2,2532.1,0.05]
[1747734594339,34.50166136,2532.2,2532.1,0.05]
[1747734595284,33.24728633,2532.2,2532.1,0.05]
[1747734597785,30.87728633,2532.2,2532.1,0.05]
[1747734598075,30.87628633,2532.2,2532.1,0.05]
[1747734599789,60.1351836,2532.2,2532.1,0.05]
[1747734599993,50.6787366,2532.2,2532.1,0.05]
[1747734600207,40.99308733,2532.2,2532.1,0.05]
[1747734601068,43.00178246,2532.2,2532.1,0.05]
[1747734601670,41.4577656,2532.2,2532.1,0.05]
[1747734601998,40.99308733,2532.2,2532.1,0.05]
[1747734602300,39.65235133,2532.2,2532.1,0.05]
[1747734604192,40.27002618,2532.2,2532.1,0.05]
[1747734605094,37.01312218,2532.2,2532.1,0.05]
[1747734606960,37.01412218,2532.2,2532.1,0.05]
[1747734609621,38.26849721,2532.2,2532.1,0.05]
[1747734610512,55.32849721,2532.2,2532.1,0.05]
[1747734610815,54.07412218,2532.2,2532.1,0.05]
[1747734612524,56.08281731,2532.2,2532.1,0.05]
[1747734614503,4.50069532,2531.2,2531.1,0.05]
[1747734614720,21.38171218,2531.2,2531.1,0.05]
[1747734615105,21.587648,2531.2,2531.1,0.05]
[1747734616429,21.98607136,2531.2,2531.1,0.05]
[1747734616580,20.4420545,2531.2,2531.1,0.05]
[1747734616926,13.1050545,2531.2,2531.1,0.05]
[1747734617401,12.89911868,2531.2,2531.1,0.05]
[1747734626171,12.89911868,2531.2,2531.1,0.8587]
[1747734629959,12.89911868,2531.2,2531.1,0.05]
[1747734640972,12.34911868,2531.2,2531.1,0.8024]
[1747734641687,3.95069532,2531.2,2531.1,0.8024]
[1747734646601,3.95069532,2531.2,2531.1,8.1374]
[1747734646781,3.95069532,2531.2,2531.1,9.10554169]
[1747734647591,3.95069532,2531.2,2531.1,17.10554169]
[1747734648086,3.95069532,2531.2,2531.1,18.64955855]
[1747734651654,4.36105275,2534.2,2531.1,18.64955855]
[1747734651655,0.7854,2532.8,2531.3,0.7881]
[1747734651981,3.9503404,2531.5,2531.4,1.68701]
[1747734652157,3.95013908,2531.6,2531.5,0.8082]
[1747734653103,3.95013908,2531.6,2531.5,10.35221686]
[1747734655793,3.94882325,2532.4,2531.5,10.35221686]
[1747734655794,8.7955,2533.0,2531.6,8.0]
[1747734655994,3.94897918,2532.3,2532.2,2.33691686]
[1747734656199,3.94897918,2532.3,2532.2,9.66991686]
[1747734658916,3.94831101,2532.8,2532.3,0.822]
[1747734659100,3.94804374,2532.9,2532.8,0.822]
[1747734659409,3.94804374,2532.9,2532.8,8.38860169]
[1747734660211,3.94804374,2532.9,2532.8,8.37470169]
[1747734663512,3.9466439,2533.8,2532.8,16.37470169]
[1747734663719,3.94679717,2533.7,2533.6,0.7513]
[1747734663921,3.94679717,2533.7,2533.6,8.30983169]
[1747734665027,3.94726454,2533.4,2533.1,17.051]
[1747734665228,3.94757618,2533.2,2532.7,0.7649]
[1747734665428,3.94819962,2532.8,2532.7,0.7649]
[1747734666226,3.94819962,2532.8,2532.7,2.30891686]
[1747734669034,3.94819962,2532.8,2532.7,9.63691686]
[1747734670145,3.94882325,2532.4,2532.3,1.54401686]
[1747734670340,3.94882325,2532.4,2532.3,19.53031855]
[1747734670542,3.94882325,2532.4,2532.3,11.53031855]
[1747734670841,3.94882325,2532.4,2532.3,12.32151855]
[1747734673413,3.94882325,2532.4,2532.3,10.77750169]
[1747734680737,3.94913513,2532.2,2532.1,17.8171]
[1747734681043,3.94913513,2532.2,2532.1,33.1441]
[1747734687877,3.94859125,2532.6,2532.3,0.8037]
[1747734688040,3.94726454,2533.4,2532.5,0.8037]
[1747734688370,3.94837995,2532.7,2532.6,16.1307]
[1747734688539,3.94837995,2532.7,2532.6,17.74377]
[1747734689470,3.94837995,2532.7,2532.6,18.1214288]
[1747734690455,3.94837995,2532.7,2532.6,9.3287288]
[1747734690772,3.94897918,2532.3,2532.2,8.8261]
[1747734690977,3.94897918,2532.3,2532.2,16.1631]
[1747734695088,3.94876244,2532.5,2532.3,0.8066]
[1747734695390,3.94882325,2532.4,2532.3,0.8066]
[1747734695687,3.94858292,2532.6,2532.4,8.0]
[1747734695852,3.94851141,2532.6,2532.5,0.8066]
[1747734696054,3.94866732,2532.5,2532.4,8.0]
[1747734696491,3.94866732,2532.5,2532.4,15.337]
[1747734698396,3.94851141,2532.6,2532.1,17.873]
[1747734698397,3.94901408,2532.3,2532.1,17.873]
[1747734698610,3.94901408,2532.3,2532.2,7.337]
[1747734698764,3.94913513,2532.2,2532.1,18.92190554]
[1747734698961,3.94913513,2532.2,2532.1,34.25890554]
[1747734705221,3.94913513,2532.2,2532.1,35.07620554]
[1747734709020,3.94913513,2532.2,2532.1,35.45408061]
[1747734711531,3.94905856,2532.3,2532.1,35.45408061]
[1747734711718,3.94913513,2532.2,2532.1,35.45408061]
[1747734713543,3.94913513,2532.2,2532.1,25.42687507]
[1747734713744,3.94913513,2532.2,2532.1,32.387]
[1747734715302,3.94913513,2532.2,2532.1,25.049]
[1747734715486,3.94913513,2532.2,2532.1,32.387]
[1747734721429,3.94913513,2532.2,2532.1,32.76516396]
[1747734722126,3.94913513,2532.2,2532.1,36.93792036]
[1747734722427,3.94905884,2532.3,2532.1,36.93792036]
[1747734722825,3.94913513,2532.2,2532.1,36.93792036]
[1747734723835,3.94766573,2533.2,2532.1,36.93792036]
[1747734723836,3.94882325,2532.4,2532.3,0.7564]
[1747734724605,3.94882325,2532.4,2532.3,1.13456396]
[1747734726014,3.94882325,2532.4,2532.3,0.37816396]
[1747734728502,4.76412325,2532.4,2532.3,0.37816396]
[1747734728934,14.30661439,2532.4,2532.3,0.37816396]
[1747734729112,12.76412325,2532.4,2532.3,0.37816396]
[1747734729746,12.76412325,2532.4,2532.0,7.337]
[1747734729747,4.7776911,2532.1,2532.0,7.337]
[1747734731243,3.9492911,2532.1,2532.0,7.337]
[1747734731827,3.9500711,2531.6,2531.5,0.7897]
[1747734732026,3.9500711,2531.6,2531.5,24.63027]
[1747734732203,3.9500711,2531.6,2531.5,11.37327]
[1747734732406,3.9500711,2531.6,2531.5,18.71127]
[1747734733345,3.9500711,2531.6,2531.5,11.37327]
[1747734733523,3.9500711,2531.6,2531.5,17.92157]
[1747734738666,3.95038318,2531.4,2531.3,25.046]
[1747734738974,3.95038318,2531.4,2531.3,24.385]
[1747734741970,3.95038318,2531.4,2531.3,17.046]
[1747734742132,3.95038318,2531.4,2531.3,24.385]
[1747734743865,4.76948318,2531.4,2531.3,24.385]
[1747734750796,4.76948318,2531.4,2531.3,24.403]
[1747734751669,3.95038318,2531.4,2531.3,24.403]
[1747734758990,3.95038318,2531.4,2531.3,25.79232736]
[1747734759795,3.95038318,2531.4,2531.3,34.58652736]
[1747734765297,3.95038318,2531.4,2531.3,26.58652736]
[1747734766313,3.95016557,2531.6,2531.3,26.58652736]
[1747734766470,3.95016557,2531.6,2531.4,2.65865274]
[1747734766864,3.95016557,2531.6,2531.5,0.7]
[1747734768700,3.95016557,2531.6,2531.5,8.7]
[1747734771375,0.7523,2532.1,2531.5,8.7]
[1747734771711,3.94982088,2531.8,2531.6,0.7884]
[1747734771908,3.94982088,2531.8,2531.7,0.94884]
[1747734779586,3.94991507,2531.7,2531.6,13.92]
[1747734780307,3.94991507,2531.7,2531.6,8.0]
[1747734780615,3.94991507,2531.7,2531.6,15.356]
[1747734782122,3.94991507,2531.7,2531.6,7.356]
[1747734782624,3.95038318,2531.4,2531.3,22.966]
[1747734782825,3.95038318,2531.4,2531.3,30.298]
[1747734783419,3.95038318,2531.4,2531.3,17.046]
[1747734783621,3.95038318,2531.4,2531.3,24.378]
[1747734792151,3.95038318,2531.4,2531.3,17.046]
[1747734792451,3.95038318,2531.4,2531.1,0.05]
[1747734792452,4.71659532,2531.2,2531.1,0.05]
[1747734792754,23.38659532,2531.2,2531.1,0.05]
[1747734792953,24.93027577,2531.2,2531.1,0.05]
[1747734794059,25.94818388,2531.2,2531.1,0.05]
[1747734797631,3.95194435,2530.4,2530.3,17.054]
[1747734797870,4.77494435,2530.4,2530.3,17.054]
[1747734799872,3.95194435,2530.4,2530.3,17.054]
[1747734800674,3.95194435,2530.4,2530.3,24.39]
[1747734800852,4.75854435,2530.4,2530.3,24.39]
[1747734803768,4.75854435,2530.4,2530.3,17.054]
[1747734806356,3.95225673,2530.2,2530.1,7.387]
[1747734814914,4.73655673,2530.2,2530.1,7.387]
[1747734817282,13.28655673,2530.2,2530.1,0.05]
[1747734820419,13.28655673,2530.2,2530.1,0.05]
[1747734820925,23.40655673,2530.2,2530.1,0.05]
[1747734821710,4.74816306,2529.3,2529.2,7.338]
[1747734822115,3.95366306,2529.3,2529.2,7.338]
[1747734824425,3.95381938,2529.2,2529.1,0.05]
[1747734826094,4.75471938,2529.2,2529.1,0.05]
[1747734827536,13.30471938,2529.2,2529.1,0.05]
[1747734830735,20.64471938,2529.2,2529.1,0.05]
[1747734830899,30.76471938,2529.2,2529.1,0.05]
[1747734831095,32.93407071,2529.2,2529.1,0.05]
[1747734831418,33.13863674,2529.2,2529.1,0.05]
[1747734832912,4.75328327,2528.2,2528.1,0.05]
[1747734834534,23.42328327,2528.2,2528.1,0.05]
[1747734837054,30.76528327,2528.2,2528.1,0.05]
[1747734841928,32.30896372,2528.2,2528.1,0.05]
[1747734842517,33.13528327,2528.2,2528.1,0.05]
[1747734843556,23.42328327,2528.2,2528.1,0.05]
[1747734843860,36.69728327,2528.2,2528.1,0.05]
[1747734844156,30.89328327,2528.2,2528.1,0.05]
[1747734846367,4.5069484,2527.2,2527.1,0.05]
[1747734850345,4.90976434,2527.2,2527.1,0.05]
[1747734850745,4.35976434,2527.2,2527.1,0.05]
[1747734851670,4.90976434,2527.2,2527.1,0.05]
[1747734852056,12.90976434,2527.2,2527.1,0.05]
[1747734853383,23.02976434,2527.2,2527.1,0.05]
[1747734856647,22.0769484,2527.2,2527.1,0.05]
[1747734856855,22.0769484,2527.2,2527.1,0.8317]
[1747734856856,14.0769484,2527.2,2527.1,0.8317]
[1747734857970,3.9569484,2527.2,2527.1,0.8317]
[1747734858848,3.9569484,2527.2,2527.1,8.3037]
[1747734859048,3.9569484,2527.2,2527.1,9.13407]
[1747734859249,3.9569484,2527.2,2527.1,25.43937]
[1747734859477,3.9569484,2527.2,2527.1,33.43937]
[1747734859655,3.1236484,2527.2,2527.1,33.43937]
[1747734859867,3.95688036,2527.3,2527.2,0.7589]
[1747734860078,3.95688036,2527.3,2527.2,3.419827]
[1747734860332,3.95688036,2527.3,2527.2,4.178727]
[1747734860510,3.95688036,2527.3,2527.2,0.7589]
[1747734869006,3.95804472,2526.5,2526.4,7.756614]
[1747734869172,3.95804472,2526.5,2526.4,15.228614]
[1747734869980,3.95792096,2526.6,2526.4,15.228614]
[1747734870179,3.95792096,2526.6,2526.5,3.2315614]
[1747734870874,3.95777783,2526.7,2526.5,3.2315614]
[1747734871102,3.95777783,2526.7,2526.6,8.0]
[1747734871797,3.95766521,2526.8,2526.6,8.0]
[1747734872113,3.95745511,2526.9,2526.7,0.8327]
[1747734872261,3.95745511,2526.9,2526.8,1.71597]
[1747734874004,3.95731344,2527.0,2526.9,0.8327]
[1747734874178,3.95731344,2527.0,2526.9,8.3037]
[1747734876103,3.95718191,2527.1,2527.0,0.7884]
[1747734876307,3.95718191,2527.1,2527.0,8.7884]
[1747734876476,3.95718191,2527.1,2527.0,10.502667]
[1747734878705,3.95696852,2527.2,2527.1,0.8074]
[1747734878706,3.95708485,2527.2,2527.1,0.8074]
[1747734881610,3.95708485,2527.2,2527.1,25.8904]
[1747734881817,3.95708485,2527.2,2527.1,24.647]
[1747734885333,4.78628485,2527.2,2527.1,17.083]
[1747734885507,3.95708485,2527.2,2527.1,17.083]
[1747734894434,3.95708485,2527.2,2527.1,24.648]
[1747734895019,3.95788807,2526.6,2526.5,11.2315614]
[1747734895358,3.95788807,2526.6,2526.5,18.7965614]
[1747734896538,3.95788807,2526.6,2526.5,10.7965614]
[1747734899655,3.95788807,2526.6,2526.5,3.2315614]
[1747734899954,3.95788807,2526.6,2526.5,10.7965614]
[1747734900650,3.64322837,2526.6,2526.5,10.7965614]
[1747734902646,3.64322837,2526.6,2526.5,7.565]
[1747734903446,3.95820139,2526.4,2526.3,25.8538]
[1747734903648,3.95820139,2526.4,2526.3,32.65]
[1747734907991,3.95755354,2526.9,2526.3,32.65]
[1747734907992,3.95786566,2526.7,2526.4,8.7652]
[1747734908174,3.9577728,2526.7,2526.4,8.0]
[1747734908459,3.9577728,2526.7,2526.5,4.41282983]
[1747734908765,3.95788807,2526.6,2526.5,4.41282983]
[1747734910872,3.95782597,2526.7,2526.5,4.41282983]
[1747734911372,3.95754739,2526.9,2526.5,3.66082983]
[1747734911574,3.95754739,2526.9,2526.6,0.7666]
[1747734911874,3.95757479,2526.8,2526.7,0.44274298]
[1747734912078,3.95757479,2526.8,2526.7,7.94174298]
[1747734914959,3.95757479,2526.8,2526.7,25.02774298]
[1747734921194,3.95663527,2527.4,2526.8,0.7531]
[1747734921510,3.95732781,2527.0,2526.9,2.5780843]
[1747734921663,3.95732781,2527.0,2526.7,25.52874298]
[1747734921664,3.95757479,2526.8,2526.7,25.52874298]
[1747734921985,3.95757479,2526.8,2526.7,38.95874298]
[1747734922189,3.95757479,2526.8,2526.7,24.584]
[1747734922862,4.73887479,2526.8,2526.7,24.584]
[1747734923262,4.73887479,2526.8,2526.7,17.086]
[1747734923468,3.95851476,2526.2,2526.1,0.52035747]